Workbook

Sheet Dataset
B2: Sample Dataset
B4: Employee Name | C4: Salary 2020 | D4: Salary 2021 | E4: Increment
B5: Rob | C5: 1500 | D5: 2150
B6: John | C6: 1700 | D6: 2390
B7: Jack | C7: 1400 | D7: 2740
B8: Matt | C8: 1580 | D8: 2167
B9: Christophar | C9: 1350 | D9: 2768
B10: David | C10: 1620 | D10: 2330
B11: Anne | C11: 1800 | D11: 2530

Sheet AutoFill Method
B2: Use of Autofill Tool | K2: Practice Yourself
B4: Employee Name | C4: Salary 2020 | D4: Salary 2021 | E4: Increment | K4: Employee Name | L4: Salary 2020 | M4: Salary 2021 | N4: Increament
B5: Rob | C5: 1500 | D5: 2150 | E5: =D5-C5 -> 650 | K5: Rob | L5: 1500 | M5: 2150
B6: John | C6: 1700 | D6: 2390 | E6: =D6-C6 -> 690 | K6: John | L6: 1700 | M6: 2390
B7: Jack | C7: 1400 | D7: 2740 | E7: 1340 | K7: Jack | L7: 1400 | M7: 2740
B8: Matt | C8: 1580 | D8: 2167 | E8: 587 | K8: Matt | L8: 1580 | M8: 2167
B9: Christophar | C9: 1350 | D9: 2768 | E9: 1418 | K9: Christophar | L9: 1350 | M9: 2768
B10: David | C10: 1620 | D10: 2330 | E10: 710 | K10: David | L10: 1620 | M10: 2330
B11: Anne | C11: 1800 | D11: 2530 | E11: 730 | K11: Anne | L11: 1800 | M11: 2530

Sheet Shortcut Method
B2: Use of Keyboard Shortcut | K2: Practice Yourself
B4: Employee Name | C4: Salary 2020 | D4: Salary 2021 | E4: Increment | K4: Employee Name | L4: Salary 2020 | M4: Salary 2021 | N4: Increament
B5: Rob | C5: 1500 | D5: 2150 | E5: =D5-C5 -> 650 | K5: Rob | L5: 1500 | M5: 2150
B6: John | C6: 1700 | D6: 2390 | E6: 690 | K6: John | L6: 1700 | M6: 2390
B7: Jack | C7: 1400 | D7: 2740 | E7: 1340 | K7: Jack | L7: 1400 | M7: 2740
B8: Matt | C8: 1580 | D8: 2167 | E8: 587 | K8: Matt | L8: 1580 | M8: 2167
B9: Christophar | C9: 1350 | D9: 2768 | E9: 1418 | K9: Christophar | L9: 1350 | M9: 2768
B10: David | C10: 1620 | D10: 2330 | E10: 710 | K10: David | L10: 1620 | M10: 2330
B11: Anne | C11: 1800 | D11: 2530 | E11: 730 | K11: Anne | L11: 1800 | M11: 2530

Sheet Excel Table Method
B2: Use of Table | J2: Practice Yourself
B4: Employee Name | C4: Salary 2020 | D4: Salary 2021 | E4: Increment | J4: Employee Name | K4: Salary 2020 | L4: Salary 2021 | M4: Increament
B5: Rob | C5: 1500 | D5: 2150 | E5: =Table1[[#This Row],[Salary 2021]]-Table1[[#This Row],[Salary 2020]] -> 650 | J5: Rob | K5: 1500 | L5: 2150
B6: John | C6: 1700 | D6: 2390 | E6: =Table1[[#This Row],[Salary 2021]]-Table1[[#This Row],[Salary 2020]] -> 690 | J6: John | K6: 1700 | L6: 2390
B7: Jack | C7: 1400 | D7: 2740 | E7: =Table1[[#This Row],[Salary 2021]]-Table1[[#This Row],[Salary 2020]] -> 1340 | J7: Jack | K7: 1400 | L7: 2740
B8: Matt | C8: 1580 | D8: 2167 | E8: =Table1[[#This Row],[Salary 2021]]-Table1[[#This Row],[Salary 2020]] -> 587 | J8: Matt | K8: 1580 | L8: 2167
B9: Christophar | C9: 1350 | D9: 2768 | E9: =Table1[[#This Row],[Salary 2021]]-Table1[[#This Row],[Salary 2020]] -> 1418 | J9: Christophar | K9: 1350 | L9: 2768
B10: David | C10: 1620 | D10: 2330 | E10: =Table1[[#This Row],[Salary 2021]]-Table1[[#This Row],[Salary 2020]] -> 710 | J10: David | K10: 1620 | L10: 2330
B11: Anne | C11: 1800 | D11: 2530 | E11: =Table1[[#This Row],[Salary 2021]]-Table1[[#This Row],[Salary 2020]] -> 730 | J11: Anne | K11: 1800 | L11: 2530

Sheet Dynamic Array Method
B2: Creating Dynamic Array Formula | L2: Practice Yourself
B4: Employee Name | C4: Salary 2020 | D4: Salary 2021 | E4: Increment | L4: Employee Name | M4: Salary 2020 | N4: Salary 2021 | O4: Increament
B5: Rob | C5: 1500 | D5: 2150 | E5: =D5:D11-C5:C11 -> 650 | L5: Rob | M5: 1500 | N5: 2150
B6: John | C6: 1700 | D6: 2390 | E6: 690 | L6: John | M6: 1700 | N6: 2390
B7: Jack | C7: 1400 | D7: 2740 | E7: 1340 | L7: Jack | M7: 1400 | N7: 2740
B8: Matt | C8: 1580 | D8: 2167 | E8: 587 | L8: Matt | M8: 1580 | N8: 2167
B9: Christophar | C9: 1350 | D9: 2768 | E9: 1418 | L9: Christophar | M9: 1350 | N9: 2768
B10: David | C10: 1620 | D10: 2330 | E10: 710 | L10: David | M10: 1620 | N10: 2330
B11: Anne | C11: 1800 | D11: 2530 | E11: 730 | L11: Anne | M11: 1800 | N11: 2530

Sheet VBA Method
B2: Use of VBA | K2: Practice Yourself
B4: 46 | C4: 82 | D4: 58 | E4: 70 | F4: 106 | K4: 4 | L4: 13 | M4: 7 | N4: 10 | O4: 19
B5: 70 | C5: 70 | D5: 82 | E5: 106 | F5: 70 | K5: 10 | L5: 10 | M5: 13 | N5: 19 | O5: 10
B6: 94 | C6: 82 | D6: 106 | E6: 130 | F6: 106 | K6: 16 | L6: 13 | M6: 19 | N6: 25 | O6: 19
B7: 106 | C7: 94 | D7: 118 | E7: 46 | F7: 130 | K7: 19 | L7: 16 | M7: 22 | N7: 4 | O7: 25
B8: 118 | C8: 118 | D8: 130 | E8: 70 | F8: 58 | K8: 22 | L8: 22 | M8: 25 | N8: 10 | O8: 7
B9: 70 | C9: 82 | D9: 70 | E9: 130 | F9: 142 | K9: 10 | L9: 13 | M9: 10 | N9: 25 | O9: 28
B10: 82 | C10: 70 | D10: 46 | E10: 82 | F10: 46 | K10: 13 | L10: 10 | M10: 4 | N10: 13 | O10: 4
B11: 70 | C11: 58 | D11: 70 | E11: 70 | F11: 82 | K11: 10 | L11: 7 | M11: 10 | N11: 10 | O11: 13

Sheet Copy and Paste Command Method
B2: Use of Copy and Paste Command | K2: Practice Yourself
B4: Product | C4: Price (February) | D4: Price (March) | E4: Price (April) | F4: Price (May) | K4: Product | L4: Price (February) | M4: Price (March) | N4: Price (April) | O4: Price (May)
B5: Orange | C5: 5 | D5: =$C5-$C5*B$14 -> 4.9 | K5: Orange | L5: 5
B6: Banana | C6: 3 | D6: 2.94 | K6: Banana | L6: 3
B7: Mango | C7: 7 | D7: 6.86 | K7: Mango | L7: 7
B8: Apple | C8: 4 | D8: 3.92 | K8: Apple | L8: 4
B9: Grape | C9: 6 | D9: 5.88 | K9: Grape | L9: 6
B11: Discount | K11: Discount
B13: March | C13: April | D13: May | K13: March | L13: April | M13: May
B14: 0.02 | C14: 0.03 | D14: 0.05 | K14: 0.02 | L14: 0.03 | M14: 0.05

Sheet Shortcut CTRL+D Method
B2: Keyboard Shortcut CTRL + D | L2: Practice Yourself
B4: Product | C4: Price (February) | D4: Price (March) | E4: Price (April) | F4: Price (May) | L4: Product | M4: Price (February) | N4: Price (March) | O4: Price (April) | P4: Price (May)
B5: Orange | C5: 5 | D5: =$C5-$C5*B$14 -> 4.9 | E5: =$C5-$C5*C$14 -> 4.85 | F5: =$C5-$C5*D$14 -> 4.75 | L5: Orange | M5: 5
B6: Banana | C6: 3 | D6: =$C6-$C6*B$14 -> 2.94 | E6: =$C6-$C6*C$14 -> 2.91 | F6: =$C6-$C6*D$14 -> 2.85 | L6: Banana | M6: 3
B7: Mango | C7: 7 | D7: 6.86 | E7: =$C7-$C7*C$14 -> 6.79 | F7: =$C7-$C7*D$14 -> 6.65 | L7: Mango | M7: 7
B8: Apple | C8: 4 | D8: 3.92 | E8: =$C8-$C8*C$14 -> 3.88 | F8: =$C8-$C8*D$14 -> 3.8 | L8: Apple | M8: 4
B9: Grape | C9: 6 | D9: 5.88 | E9: =$C9-$C9*C$14 -> 5.82 | F9: =$C9-$C9*D$14 -> 5.7 | L9: Grape | M9: 6
B11: Discount | L11: Discount
B13: March | C13: April | D13: May | L13: March | M13: April | N13: May
B14: 0.02 | C14: 0.03 | D14: 0.05 | L14: 0.02 | M14: 0.03 | N14: 0.05

Sheet Shortcut CTRL+R Method
B2: Keyboard Shortcut CTRL + R | K2: Practice Yourself
B4: Product | C4: Price (February) | D4: Price (March) | E4: Price (April) | F4: Price (May) | K4: Product | L4: Price (February) | M4: Price (March) | N4: Price (April) | O4: Price (May)
B5: Orange | C5: 5 | D5: 5 | E5: 5 | F5: 5 | K5: Orange | L5: 5
B6: Banana | C6: 3 | D6: 3 | E6: 3 | F6: 3 | K6: Banana | L6: 3
B7: Mango | C7: 7 | D7: 7 | E7: 7 | F7: 7 | K7: Mango | L7: 7
B8: Apple | C8: 4 | D8: 4 | E8: 4 | F8: 4 | K8: Apple | L8: 4
B9: Grape | C9: 6 | D9: 6 | E9: 6 | F9: 6 | K9: Grape | L9: 6
B11: Discount | K11: Discount
B13: March | C13: April | D13: May | K13: March | L13: April | M13: May
B14: 0.02 | C14: 0.03 | D14: 0.05 | K14: 0.02 | L14: 0.03 | M14: 0.05

Sheet Formula for Non Adjacent Cells
B2: Formula for Non Adjacent Multiple Cells | K2: Practice Yourself
B4: Product | C4: Price (February) | D4: Price (March) | E4: Price (April) | F4: Price (May) | K4: Product | L4: Price (February) | M4: Price (March) | N4: Price (April) | O4: Price (May)
B5: Orange | C5: 5 | D5: =$C5-$C5*B$16 -> 4.9 | E5: =$C5-$C5*C$16 -> 4.85 | F5: =$C5-$C5*D$16 -> 4.75 | K5: Orange | L5: 5
B7: Banana | C7: 3 | D7: =$C7-$C7*B$16 -> 2.94 | E7: =$C7-$C7*C$16 -> 2.91 | F7: =$C7-$C7*D$16 -> 2.85 | K7: Banana | L7: 3
B8: Mango | C8: 7 | D8: =$C8-$C8*B$16 -> 6.86 | E8: =$C8-$C8*C$16 -> 6.79 | F8: =$C8-$C8*D$16 -> 6.65 | K8: Mango | L8: 7
B10: Apple | C10: 4 | D10: =$C10-$C10*B$16 -> 3.92 | E10: =$C10-$C10*C$16 -> 3.88 | F10: =$C10-$C10*D$16 -> 3.8 | K10: Apple | L10: 4
B11: Grape | C11: 6 | D11: =$C11-$C11*B$16 -> 5.88 | E11: =$C11-$C11*C$16 -> 5.82 | F11: =$C11-$C11*D$16 -> 5.7 | K11: Grape | L11: 6
B13: Discount | K13: Discount
B15: March | C15: April | D15: May | K15: March | L15: April | M15: May
B16: 0.02 | C16: 0.03 | D16: 0.05 | K16: 0.02 | L16: 0.03 | M16: 0.05
